bitfinex/quotes_ETHUSD_20220310
["timestamp","ask_amount","ask_price","bid_price","bid_amount"]
[1646938803988,0.70762612,2600.7,2599.7,0.0756483]
[1646938804196,0.70762612,2600.7,2600.2,0.08842589]
[1646938804398,0.70762612,2600.8,2599.9,1.04910962]
[1646938804594,0.70762612,2600.9,2600.2,0.01244968]
[1646938804797,0.70762612,2601.0,2600.3,0.53693442]
[1646938804993,0.70762612,2601.0,2600.4,0.07311456]
[1646938805396,1.66953612,2601.0,2600.2,1.04116785]
[1646938805596,1.66953612,2601.0,2600.4,0.0802222]
[1646938805796,0.70762612,2600.9,2600.6,0.08842589]
[1646938805995,0.70762612,2600.8,2600.5,0.00363012]
[1646938806196,0.70762612,2600.8,2600.6,0.01244968]
[1646938806394,1.03362529,2600.7,2600.5,0.00363012]
[1646938806838,1.03362529,2600.7,2600.2,0.9619344]
[1646938807338,1.03362529,2600.7,2600.4,0.08842589]
[1646938807738,1.03362529,2600.7,2600.4,0.10087557]
[1646938807937,1.03362529,2600.7,2600.4,0.08842589]
[1646938808139,1.03362529,2600.7,2600.1,0.07400654]
[1646938808340,1.03362529,2600.7,2600.2,0.9618973]
[1646938808541,1.03362529,2600.7,2600.2,1.9237773]
[1646938808741,1.03362529,2600.7,2600.4,0.08842589]
[1646938808940,0.70762612,2600.9,2600.3,2.00717662]
[1646938809140,0.70762612,2600.9,2600.5,0.01244968]
[1646938809347,0.94924193,2601.0,2600.6,0.9618157]
[1646938810145,1.03713394,2600.9,2600.6,0.9618157]
[1646938810396,1.03713394,2600.9,2600.8,0.08842589]
[1646938810790,1.03713394,2600.9,2600.8,0.10087557]
[1646938811991,0.70762612,2601.1,2600.8,0.10087557]
[1646938812194,0.70762612,2601.1,2600.8,0.08842589]
[1646938812391,0.70762612,2601.1,2600.7,0.9617451]
[1646938812589,0.70762612,2601.1,2601.0,0.01244968]
[1646938812790,0.70762612,2601.1,2600.7,0.9617451]
[1646938812990,1.21237007,2601.0,2600.7,0.9617451]
[1646938813191,1.21237007,2601.0,2600.6,1.04466348]
[1646938813993,2.93376316,2601.0,2600.8,0.01244968]
[1646938814249,0.65762612,2600.9,2600.8,0.10087557]
[1646938814450,0.65762612,2600.9,2600.8,0.01244968]
[1646938814650,2.22613704,2601.0,2600.9,0.16938659]
[1646938814853,3.18822704,2601.0,2600.9,0.16938659]
[1646938815547,2.22620704,2601.0,2600.9,0.2165834]
[1646938815749,1.26422704,2601.0,2600.9,0.2165834]
[1646938815950,1.21237007,2601.0,2600.9,0.2165834]
[1646938818089,1.2326,2601.3,2600.9,0.2165834]
[1646938818292,1.38218912,2601.4,2600.9,0.12815751]
[1646938818490,0.05054085,2601.4,2601.2,0.01244968]
[1646938818692,0.05054085,2601.4,2600.9,0.11570783]
[1646938819496,0.43634085,2601.4,2600.9,0.11570783]
[1646938819696,0.05054085,2601.4,2601.2,0.16938659]
[1646938819897,1.0614092,2601.3,2601.2,0.16938659]
[1646938820395,1.31277612,2601.5,2601.2,0.16938659]
[1646938820596,0.15884612,2601.5,2601.2,0.16938659]
[1646938821503,0.15884612,2601.5,2601.0,0.11570783]
[1646938821504,1.18890626,2601.4,2601.0,0.11570783]
[1646938821747,0.24305799,2601.3,2601.0,0.11570783]
[1646938821947,2.21946822,2601.3,2601.0,0.11570783]
[1646938822151,0.29476728,2601.2,2601.0,0.11570783]
[1646938822348,1.42693934,2601.1,2601.0,0.11570783]
[1646938822946,1.42693934,2601.1,2601.0,0.20413372]
[1646938823146,1.42693934,2601.1,2601.0,0.2165834]
[1646938826788,2.13657251,2601.1,2601.0,0.2165834]
[1646938827190,1.42693934,2601.1,2601.0,0.2165834]
[1646938833292,2.37278761,2601.1,2601.0,0.2165834]
[1646938834093,2.37278761,2601.1,2601.0,0.30228029]
[1646938835604,2.37278761,2601.1,2601.0,0.1947454]
[1646938835800,1.42693934,2601.1,2601.0,0.14410198]
[1646938836198,1.42693934,2601.1,2601.0,0.1947454]
[1646938836842,2.37368542,2601.1,2601.0,0.1947454]
[1646938837045,1.42693934,2601.1,2601.0,0.1947454]
[1646938837845,3.67375244,2601.1,2601.0,0.1947454]
[1646938838045,3.37375244,2601.1,2601.0,0.1947454]
[1646938838649,2.42693934,2601.1,2601.0,0.1947454]
[1646938839046,0.24305799,2601.1,2601.0,0.1947454]
[1646938839250,0.95310183,2601.1,2601.0,0.1947454]
[1646938839453,0.95310183,2601.1,2601.0,0.23722136]
[1646938839652,0.71004384,2601.1,2601.0,0.23722136]
[1646938840054,0.24305799,2601.3,2601.0,0.23722136]
[1646938840055,0.71004384,2601.2,2601.0,0.23722136]
[1646938840254,0.24305799,2601.1,2601.0,0.22785155]
[1646938840492,0.71004384,2601.3,2601.2,0.01244968]
[1646938840694,0.24142068,2601.3,2601.2,0.01244968]
[1646938841090,0.71004384,2601.4,2601.2,0.01244968]
[1646938841292,0.95146452,2601.3,2601.0,0.16475845]
[1646938841491,0.24142068,2601.2,2601.0,0.16475845]
[1646938841691,0.24142068,2601.1,2601.0,0.16475845]
[1646938841890,0.71004384,2601.3,2601.0,0.16475845]
[1646938842091,0.71004384,2601.3,2601.2,0.01244968]
[1646938842493,0.95146452,2601.3,2601.2,0.01244968]
[1646938842690,0.71004384,2601.3,2601.2,0.01244968]
[1646938843495,0.71004384,2601.3,2601.2,0.10087557]
[1646938843891,0.24142068,2601.3,2601.2,0.10087557]
[1646938844141,0.24142068,2601.4,2601.2,0.10087557]
[1646938844343,1.18823378,2601.4,2601.2,0.08842589]
[1646938844545,1.18823378,2601.4,2601.3,0.01244968]
[1646938844946,0.24142068,2601.4,2601.2,0.08842589]
[1646938845146,1.18922513,2601.4,2601.2,0.08842589]
[1646938845349,2.01928287,2601.5,2601.2,0.08842589]
[1646938845350,0.24142068,2601.3,2601.2,0.08842589]
[1646938845547,0.24142068,2601.3,2601.2,0.11386747]
[1646938845748,0.95220132,2601.5,2601.2,0.19239593]
[1646938845946,0.24142068,2601.4,2601.2,0.19239593]
[1646938846151,0.98464825,2601.6,2601.4,0.01244968]
[1646938846348,0.24083988,2601.5,2601.4,0.01244968]
[1646938846547,0.24083988,2601.5,2601.4,0.10087557]
[1646938846748,0.24083988,2601.5,2601.4,0.23750329]
[1646938848803,0.24083988,2601.5,2601.4,0.15151899]
[1646938849500,0.51470749,2601.6,2601.4,0.15151899]
[1646938849697,0.24083988,2601.5,2601.4,0.17606468]
[1646938849898,0.24083988,2601.5,2601.4,0.08763879]
[1646938851500,0.24083988,2601.5,2601.4,0.27678271]
[1646938854361,0.24083988,2601.5,2601.4,0.34902696]
[1646938855596,0.24083988,2601.5,2601.4,0.24256103]
[1646938855997,0.24083988,2601.5,2601.4,0.22613929]
[1646938856300,0.24083988,2601.5,2601.4,0.24256103]
[1646938856503,41.5,2601.3,2600.6,1.0]
[1646938856703,50.11402001,2601.2,2600.1,2.4459041]
[1646938856900,1.22438318,2601.1,2600.2,1.22626395]
[1646938857097,1.22438318,2601.1,2600.0,9.94743072]
[1646938857098,0.71010721,2600.7,2600.0,9.94743072]
[1646938857302,1.72269724,2600.4,2600.0,9.88605241]
[1646938857501,1.72269724,2600.4,2599.6,0.00119897]
[1646938857502,51.5,2600.2,2599.6,0.00119897]
[1646938857701,0.96251,2600.0,2598.8,0.00119897]
[1646938857898,0.01229397,2599.8,2599.0,0.00119897]
[1646938858097,0.01229397,2599.8,2598.7,0.04958559]
[1646938858098,0.6553,2599.7,2598.7,0.04958559]
[1646938858297,4.5346968,2599.6,2598.6,0.00119897]
[1646938858500,0.96259,2599.3,2598.4,0.04927756]
[1646938858697,1.92519,2599.1,2598.4,1.17782421]
[1646938858897,0.9626,2598.9,2598.4,1.17662524]
[1646938859148,0.9626,2598.9,2598.7,0.00473188]
[1646938859755,1.04384833,2598.9,2598.7,0.00473188]
[1646938859949,1.04384833,2598.9,2598.2,0.00119897]
[1646938860149,1.04384833,2598.9,2598.1,0.70286634]
[1646938860347,0.07682015,2598.8,2598.7,0.00118297]
[1646938861151,3.57682015,2598.8,2598.2,0.00119897]
[1646938861351,0.07937031,2598.7,2598.6,0.0036921]
[1646938861554,4.62047031,2598.7,2598.6,0.0036921]
[1646938861757,5.62047031,2598.7,2598.6,0.0036921]
[1646938861952,17.39047031,2598.7,2598.6,0.0036921]
[1646938862150,0.3858,2598.6,2598.2,0.01477063]
[1646938862350,1.42410449,2598.3,2598.2,0.01477063]
[1646938862551,5.38710449,2598.3,2597.4,0.00119897]
[1646938862751,5.38710449,2598.3,2597.2,0.70286634]
[1646938862752,0.9630344,2598.0,2597.2,0.00119897]
[1646938863011,0.07309412,2597.8,2597.1,0.70286634]
[1646938863213,0.07309412,2597.8,2597.3,0.04035807]
[1646938863428,1.99912412,2597.8,2597.3,0.04035807]
[1646938863614,0.07558472,2597.7,2597.1,1.82541343]
[1646938863813,0.07558472,2597.7,2597.2,0.04092649]
[1646938866124,0.07558472,2597.7,2597.3,0.00394268]
[1646938866740,0.07523263,2597.9,2597.3,0.00394268]
[1646938867043,0.07523263,2597.9,2597.5,1.14004874]
[1646938867944,1.0289834,2597.8,2597.4,0.00360417]
[1646938868144,0.06369516,2597.6,2597.4,0.00360417]
[1646938868344,0.06369516,2597.6,2597.2,0.04092649]
[1646938868745,0.06369516,2597.6,2597.2,0.0144184]
[1646938868948,0.5783,2597.5,2597.2,0.0144184]
[1646938869152,3.96331824,2597.4,2597.2,0.0144184]
[1646938869454,0.26806958,2597.3,2597.2,0.0144184]
[1646938869656,1.15586,2597.3,2596.9,0.04263176]
[1646938869854,0.98304715,2597.6,2596.4,0.05457008]
[1646938869855,0.01983715,2597.6,2597.2,0.04092649]
[1646938870058,0.01983715,2597.6,2597.2,0.00360425]
[1646938870250,0.01983715,2597.6,2597.4,1.16606948]
[1646938870937,0.01983715,2597.6,2597.4,0.0033817]
[1646938872032,0.01983715,2597.6,2597.2,0.91620019]
[1646938872237,0.01983715,2597.6,2597.4,0.0034044]
[1646938873233,0.01983715,2597.6,2597.2,0.91620019]
[1646938873435,0.01983715,2597.6,2597.4,0.0034044]
[1646938874447,0.01983715,2597.6,2597.5,0.03452012]
[1646938874647,0.01983715,2597.6,2597.5,0.07031774]
[1646938875646,3.5,2598.1,2598.0,0.17472692]
[1646938875846,0.05320179,2598.1,2598.0,0.17472692]
[1646938876248,3.93900179,2598.1,2598.0,0.17472692]
[1646938876848,0.43900179,2598.1,2598.0,0.17472692]
[1646938878996,3.93900179,2598.1,2598.0,0.17472692]
[1646938879398,3.96041445,2598.1,2598.0,0.24680547]
[1646938879597,3.90721266,2598.1,2598.0,0.24680547]
[1646938880196,4.09961266,2598.1,2598.0,0.24680547]
[1646938880597,0.40721266,2598.1,2598.0,0.24680547]
[1646938880797,0.02141266,2598.1,2598.0,0.24680547]
[1646938882249,0.13643414,2598.1,2598.0,0.24680547]
[1646938883449,0.18025879,2598.1,2598.0,0.24680547]
[1646938884452,0.29528027,2598.1,2598.0,1.43786157]
[1646938885493,0.29528027,2598.1,2598.0,1.42124808]
[1646938885494,0.33910492,2598.1,2598.0,1.42124808]
[1646938886499,0.38292957,2598.1,2598.0,1.42124808]
[1646938887303,0.38292957,2598.1,2598.0,0.23019198]
[1646938887502,0.42675422,2598.1,2598.0,0.23019198]
[1646938888503,0.47057887,2598.1,2598.0,0.23019198]
[1646938889552,0.51440352,2598.1,2598.0,0.27448697]
[1646938890661,0.55822817,2598.1,2598.0,0.27448697]
[1646938890953,46.5,2598.0,2597.1,4.14225492]
[1646938891155,36.5,2597.9,2597.0,1.0]
[1646938891355,36.5,2597.9,2596.4,0.0196702]
[1646938891356,0.01206323,2597.5,2596.4,0.0196702]
[1646938891554,0.01206323,2597.5,2596.4,7.02e-05]
[1646938891555,0.01284177,2596.7,2596.4,7.02e-05]
[1646938891756,0.01284177,2596.7,2595.7,0.3846]
[1646938891757,0.06801938,2596.5,2595.7,0.3846]
[1646938891955,0.06801938,2596.5,2596.0,0.96417593]
[1646938892155,0.08217428,2596.3,2595.2,0.1925]
[1646938892361,0.3858,2596.1,2595.2,0.1925]
[1646938892556,0.3858,2596.1,2595.3,1.07395344]
[1646938892557,0.06926997,2595.9,2595.3,1.07395344]
[1646938892758,0.06926997,2595.9,2595.1,0.03489988]
[1646938893000,0.463,2596.0,2595.3,1.12544747]
[1646938893210,0.06849878,2595.8,2595.2,0.1925]
[1646938893403,0.96374,2595.7,2595.1,0.03489988]
[1646938893606,0.07874331,2595.6,2595.1,0.03489988]
[1646938894006,0.07874331,2595.6,2595.5,0.00333911]
[1646938894707,0.07874331,2595.6,2595.4,1.08221028]
[1646938894907,0.19376479,2595.6,2595.4,1.08221028]
[1646938895109,0.19376479,2595.6,2595.4,1.08554944]
[1646938895511,0.96368,2595.5,2595.4,0.00333916]
[1646938895812,0.05309574,2595.7,2595.4,0.00333916]
[1646938896009,0.11502148,2595.6,2595.1,0.03489988]
[1646938896208,0.11502148,2595.6,2595.3,0.0033392]
[1646938896844,0.11502148,2595.6,2595.4,1.08446752]
[1646938897449,0.11502148,2595.6,2595.3,0.00337602]
[1646938897651,3.61502148,2595.6,2595.3,0.00337602]
[1646938897949,0.23004296,2595.6,2595.3,0.00337602]
[1646938898352,0.23004296,2595.6,2595.1,0.03489988]
[1646938898551,0.23004296,2595.6,2595.4,0.94334669]
[1646938899150,0.27386761,2595.6,2595.4,0.94334669]
[1646938899551,0.33487987,2595.6,2595.4,1.01983228]
[1646938899752,0.33487987,2595.6,2595.4,1.02320828]
[1646938900253,0.44990135,2595.6,2595.4,1.02320828]
[1646938900702,0.44990135,2595.6,2595.4,1.01983228]
[1646938900906,0.11502148,2596.0,2595.4,1.01983228]
[1646938901104,0.04382465,2595.6,2595.4,1.32320042]
[1646938901303,0.04382465,2595.6,2595.5,1.17020772]
[1646938901901,0.04382465,2595.6,2595.5,2.19713703]
[1646938902303,0.15884613,2595.6,2595.5,2.19713703]
[1646938903204,0.27386761,2595.6,2595.5,2.19713703]
[1646938903602,0.27386761,2595.6,2595.5,2.26949796]
[1646938904352,0.31769226,2595.6,2595.5,2.26949796]
[1646938904551,75.31769226,2595.6,2595.5,2.26949796]
[1646938905254,75.36151691,2595.6,2595.5,2.26949796]
[1646938905453,75.38020873,2595.6,2595.5,2.34590425]
[1646938905653,75.38020873,2595.6,2595.5,2.27354332]
[1646938906453,75.49523021,2595.6,2595.5,2.27354332]
[1646938906855,75.49523021,2595.6,2595.5,1.1033356]
[1646938907055,75.49523021,2595.6,2595.5,0.07640629]
[1646938907454,75.61025169,2595.6,2595.5,0.07640629]
[1646938908503,75.72527317,2595.6,2595.5,0.07640629]
[1646938909409,75.76909782,2595.6,2595.5,0.07640629]
[1646938909910,75.87202374,2595.6,2595.4,1.28089773]
[1646938910109,75.87202374,2595.6,2595.4,0.07371176]
[1646938910509,75.98704522,2595.6,2595.4,0.07034491]
[1646938910712,76.45864522,2595.6,2595.4,0.07371178]
[1646938911115,3.5,2595.5,2595.4,0.07371178]
[1646938911318,3.55277778,2595.5,2595.4,0.07371178]
[1646938911744,3.55277778,2595.5,2595.4,0.07034491]
[1646938913050,3.93857778,2595.5,2595.4,0.07034491]
[1646938913249,4.80427778,2595.5,2595.4,0.07034491]
[1646938914253,4.80598953,2595.5,2595.4,0.07034491]
[1646938914452,4.80598953,2595.5,2595.3,0.00336684]
[1646938914653,4.4639,2595.4,2595.3,0.00336684]
[1646938915405,4.4639,2595.4,2594.9,0.97654178]
[1646938915406,0.05346732,2595.3,2594.9,0.97654178]
[1646938915599,0.9638737,2595.2,2594.9,0.97654178]
[1646938915800,3.78754081,2595.4,2594.9,0.97654178]
[1646938916404,1.9278245,2595.3,2594.9,0.97654178]
[1646938917101,5.4278137,2595.2,2594.9,0.97654178]
[1646938917502,1.9278137,2595.2,2594.9,0.97654178]
[1646938917701,5.4278137,2595.2,2594.9,0.97654178]
[1646938918403,0.00171175,2595.2,2594.9,0.97654178]
[1646938918604,0.00171175,2595.2,2595.0,0.07661292]
[1646938919007,0.0455364,2595.2,2595.0,0.07661292]
[1646938919553,0.01712578,2595.1,2595.0,0.07661292]
[1646938921050,0.06095043,2595.1,2595.0,0.07661292]
[1646938921450,0.10678861,2595.1,2595.0,0.07661292]
[1646938921654,0.10850036,2595.1,2595.0,0.07661292]
[1646938922050,0.10850036,2595.1,2595.0,14.84661292]
[1646938922258,0.20951778,2595.5,2595.2,26.77]
[1646938922455,0.20669784,2596.0,2595.6,11.77]
[1646938922653,0.20669784,2596.0,2595.7,0.08825462]
[1646938922908,0.20669784,2596.0,2595.8,0.90266138]
[1646938923297,0.25052249,2596.0,2595.8,0.90266138]
[1646938923499,0.25052249,2596.0,2595.9,0.0902524]
[1646938924905,0.25052249,2596.0,2595.7,0.0747542]
[1646938925104,0.25052249,2596.0,2595.1,0.00121027]
[1646938925306,0.36554397,2596.0,2595.8,0.0034637]
[1646938926107,0.36554397,2596.0,2595.7,1.13937119]
[1646938926308,0.48056545,2596.0,2595.7,1.13937119]
[1646938926507,0.48056545,2596.0,2595.8,0.0034795]
[1646938927348,0.5243901,2596.0,2595.7,1.13937119]
[1646938927550,0.5243901,2596.0,2595.8,0.00333257]
[1646938927953,0.57194003,2596.0,2595.8,0.00333257]
[1646938928350,0.61576468,2596.0,2595.8,0.00333257]
[1646938928551,0.61576468,2596.0,2595.6,1.92672]
[1646938928951,0.61576468,2596.0,2595.8,0.00333257]
[1646938928952,0.66331461,2596.0,2595.8,0.00333257]
[1646938929353,0.01628769,2595.9,2595.8,0.00333257]
[1646938929563,0.01628769,2595.9,2595.8,0.08882696]
[1646938929753,0.77660691,2596.0,2595.9,0.07403685]
[1646938929754,0.7071946,2596.0,2595.9,0.07403685]
[1646938930154,0.09509986,2596.1,2595.9,0.07403685]
[1646938930412,0.09509986,2596.1,2596.0,16.61314914]
[1646938930598,0.09509986,2596.1,2596.0,16.91314914]
[1646938930803,0.09509986,2596.1,2596.0,17.91314914]
[1646938931005,0.05376194,2597.2,2596.1,11.77]
[1646938931203,0.05376194,2597.2,2596.2,1.92592]
[1646938931404,0.05376194,2597.2,2596.4,0.96296]
[1646938931603,0.05376194,2597.2,2596.5,0.963]
[1646938932003,0.05376194,2597.2,2596.6,1.16729794]
[1646938932404,0.05376194,2597.2,2596.7,0.00335698]
[1646938932904,0.59766341,2597.1,2596.7,0.00335698]
[1646938933303,0.59766341,2597.1,2596.3,0.00121027]
[1646938933304,3.5,2597.0,2596.3,0.00121027]
[1646938933504,0.59766341,2596.9,2595.9,0.96733877]
[1646938933704,3.5,2597.0,2596.4,0.01342588]
[1646938934148,1.13859091,2596.9,2596.4,0.01342588]
[1646938934352,2.10184831,2596.9,2596.4,0.01342588]
[1646938934552,2.10184831,2596.9,2596.1,1.09983877]
[1646938934953,0.01865497,2596.2,2596.1,1.11325229]
[1646938935652,2.10184831,2596.9,2596.4,0.0043479]
[1646938936055,3.5,2596.8,2596.4,0.0043479]
[1646938937356,3.5,2596.8,2596.5,0.00335359]
[1646938938197,0.3858,2596.7,2596.5,0.00335359]
[1646938938400,0.3858,2596.7,2596.4,0.0043479]
[1646938938401,4.8492568,2596.6,2596.4,0.0043479]
[1646938938597,3.93033979,2596.5,2596.4,0.0043479]
[1646938938797,4.93472102,2596.5,2596.4,0.0043479]
[1646938938999,5.12722102,2596.5,2596.4,0.0043479]
[1646938941303,5.83787164,2596.5,2596.4,0.0043479]
[1646938941751,5.12722102,2596.5,2596.4,0.0043479]
[1646938942359,6.12722102,2596.5,2596.4,0.0043479]
[1646938944559,4.12283979,2596.5,2596.4,0.0043479]
[1646938944761,0.75517855,2596.5,2596.4,0.0043479]
[1646938944959,0.04453979,2596.5,2596.4,0.0043479]
[1646938945402,0.9634568,2596.6,2596.4,0.0043479]
[1646938945595,0.01729713,2596.5,2596.4,0.05092707]
[1646938946496,3.90309713,2596.5,2596.4,0.05092707]
[1646938946694,4.61373589,2596.5,2596.4,0.05092707]
[1646938946897,4.90309713,2596.5,2596.4,0.05092707]
[1646938947500,5.09559713,2596.5,2596.4,0.05092707]
[1646938947901,4.90309713,2596.5,2596.4,0.05092707]
[1646938950648,0.01729713,2596.5,2596.4,0.05092707]
[1646938953603,3.65309096,2596.5,2596.4,0.05092707]
[1646938953802,2.94224999,2596.5,2596.4,0.05092707]
[1646938954001,1.01506999,2596.5,2596.4,0.05092707]
[1646938954200,1.01506999,2596.5,2596.3,0.0447237]
[1646938954201,48.3858,2596.4,2596.3,0.0447237]
[1646938954402,1.34963,2596.2,2595.9,0.01345744]
[1646938954601,4.800921,2596.2,2595.9,0.01345744]
[1646938954803,1.09665763,2596.0,2595.9,0.01345744]
[1646938955001,1.70863049,2596.0,2595.9,0.01345744]
[1646938955201,0.99777286,2596.0,2595.9,0.01345744]
[1646938955601,1.02822784,2595.4,2595.0,0.0012092]
[1646938955903,0.61197286,2595.3,2594.9,1.03939554]
[1646938956100,0.61197286,2595.3,2595.0,0.95252326]
[1646938956753,0.61197286,2595.3,2594.7,0.1925]
[1646938956754,0.74674193,2594.9,2594.7,0.1925]
[1646938956949,0.74674193,2594.9,2594.8,0.95252584]
[1646938957148,1.36848952,2594.9,2594.7,0.95252584]
[1646938957350,0.74674193,2594.9,2594.7,0.95252584]
[1646938957748,1.71075473,2594.9,2594.8,0.95252584]
[1646938957953,2.33247653,2594.9,2594.8,0.95252584]
[1646938958150,2.33247653,2594.9,2594.3,0.95373504]
[1646938958349,1.36846373,2594.9,2594.4,0.08826659]
[1646938958549,0.74674193,2594.9,2594.5,0.95252584]
[1646938959149,1.71079193,2594.9,2594.5,0.95252584]
[1646938959352,2.67242313,2594.9,2594.5,0.95252584]
[1646938959953,0.9640017,2594.8,2594.5,0.95252584]
[1646938960157,0.74674193,2594.9,2594.6,0.07641469]
[1646938960411,0.74674193,2594.9,2594.7,0.95252584]
[1646938961598,0.74674193,2594.9,2594.7,0.00390568]
[1646938962400,0.74674193,2594.9,2594.7,1.03125839]
[1646938962599,0.74674193,2594.9,2594.8,0.95252584]
[1646938965655,0.74674193,2594.9,2594.8,12.72252584]
[1646938965855,0.74674193,2594.9,2594.8,12.7700468]
[1646938965856,0.83875562,2594.9,2594.8,12.7700468]
[1646938966653,1.2133,2595.8,2594.9,0.3858]
[1646938966853,0.61630866,2595.7,2595.0,14.07185584]
[1646938967052,0.61630866,2596.0,2595.1,1.33832584]
[1646938967253,0.61623444,2595.9,2595.2,1.33832584]
[1646938967452,0.61623444,2595.8,2595.3,0.95252584]
[1646938967653,1.1668,2596.1,2595.3,0.95252584]
[1646938967911,0.61628266,2596.0,2595.8,1.22196319]
[1646938968102,0.61628266,2595.9,2595.2,0.96344]
[1646938968301,0.1925,2596.4,2595.3,0.95372468]
[1646938968505,0.61628679,2596.3,2595.3,12.72493388]
[1646938968701,0.61628679,2596.3,2595.4,12.72372468]
[1646938968902,0.61628679,2596.3,2595.5,0.95372468]
[1646938969101,0.61628679,2596.3,2596.0,0.99102006]
[1646938969705,0.61628679,2596.2,2596.0,0.99102006]
[1646938970005,0.61628679,2596.1,2595.5,12.1558]
[1646938970305,0.61628679,2596.0,2595.7,0.96327]
[1646938970506,0.1925,2596.5,2595.7,0.96327]
[1646938970805,0.61626338,2596.4,2595.7,1.92657]
[1646938971009,0.61626338,2596.3,2595.9,1.12172317]
[1646938971205,0.61626338,2596.2,2595.9,1.12172317]
[1646938971405,0.61626338,2596.1,2595.9,1.12172317]
[1646938971650,0.61626338,2596.0,2595.9,1.12172317]
[1646938972049,0.61626338,2596.5,2595.9,1.12172317]
[1646938972650,1.51961715,2596.6,2595.8,0.96326]
[1646938972849,0.61626338,2596.5,2595.8,0.96326]
[1646938973250,0.61626338,2596.5,2595.7,0.0012092]
[1646938973449,0.61626338,2596.5,2595.6,1.33964045]
[1646938973657,0.61626338,2596.5,2595.7,0.95384045]
[1646938973852,0.91187767,2596.4,2595.7,0.95384045]
[1646938974049,0.61626338,2596.3,2595.7,0.95384045]
[1646938974261,0.61626338,2596.3,2595.6,1.34062628]
[1646938974456,0.61626338,2596.3,2595.7,0.95397291]
[1646938974657,0.61626338,2596.3,2595.6,1.34062628]
[1646938975060,0.63771854,2596.3,2595.9,0.10122757]
[1646938975258,0.61626338,2596.2,2595.9,0.10122757]
[1646938976800,0.61626338,2596.2,2595.9,0.02204434]
[1646938978800,0.61626338,2596.2,2596.0,0.95624314]
[1646938979003,0.61626338,2596.2,2596.1,0.08271939]
[1646938979256,0.61626338,2596.2,2596.1,2.87127044]
[1646938979456,0.02145516,2596.3,2596.1,2.87127044]
[1646938979657,0.02145516,2596.3,2596.2,0.95423715]
[1646938980060,0.73623519,2597.0,2596.6,1.17259855]
[1646938980256,0.61751354,2596.9,2596.6,1.17259855]
[1646938980457,0.61751354,2596.9,2596.6,2.13559855]
[1646938981259,0.61751354,2596.9,2596.6,14.20559855]
[1646938981460,0.61751354,2596.9,2596.7,0.95386255]
[1646938981664,0.61751354,2596.9,2596.8,0.96285]
[1646938982360,0.61751354,2596.9,2596.8,1.26285]
[1646938984107,0.61751354,2596.9,2596.8,2.21616907]
[1646938984314,0.71085377,2597.6,2596.9,11.77]
[1646938984513,0.3853,2597.7,2596.9,11.77]
[1646938984514,0.61649486,2597.5,2597.0,1.91608907]
[1646938984817,0.3853,2597.7,2597.3,11.77]
[1646938985011,1.0,2597.4,2597.3,11.77]
[1646938985211,1.0,2597.4,2597.3,13.71203244]
[1646938985412,3.5059,2598.3,2597.5,0.96254]
[1646938985614,7.14521566,2598.4,2597.5,0.96254]
[1646938985615,0.62609333,2598.2,2597.5,0.96254]
[1646938985812,0.62609333,2598.3,2597.5,0.96254]
[1646938986014,0.62609333,2598.2,2597.6,0.941712]
[1646938986212,0.62609333,2598.1,2597.5,1.96254]
[1646938986412,0.62609333,2598.0,2597.8,0.96254]
[1646938986654,0.62609333,2597.9,2597.8,0.96254]
[1646938986958,0.0528416,2598.4,2597.8,0.96254]
[1646938987153,0.62507301,2598.3,2597.8,0.96254]
[1646938987353,0.62507301,2598.3,2598.0,1.07714451]
[1646938987656,0.62507301,2598.2,2598.0,2.03959451]
[1646938987856,7.33,2598.5,2598.0,2.03959451]
[1646938988054,0.6241187,2598.4,2598.0,2.03959451]
[1646938988255,2.7612,2598.9,2598.0,2.03959451]
[1646938988455,0.62399628,2598.8,2598.0,2.03959451]
[1646938988853,0.62399628,2598.7,2598.0,2.03959451]
[1646938989055,0.00234743,2598.4,2598.0,3.00197451]
[1646938989258,0.00234743,2598.4,2598.0,3.05197451]
[1646938989462,0.00234743,2598.4,2598.0,2.33959451]
[1646938989660,0.62233692,2598.9,2598.0,2.33959451]
[1646938989863,3.5,2598.8,2598.1,0.08001632]
[1646938990062,0.01936116,2598.2,2598.1,0.08001632]
[1646938990261,0.01936116,2598.2,2597.8,0.03489988]
[1646938991499,0.00370729,2598.1,2597.8,0.03489988]
[1646938992103,0.01936116,2598.2,2597.8,0.03489988]
[1646938992500,0.01936116,2598.2,2597.7,0.07496691]
[1646938992501,0.00370731,2598.1,2597.7,0.07496691]
[1646938993700,0.01936116,2598.2,2597.7,0.07496691]
[1646938993900,0.00370734,2598.0,2597.7,0.07496691]
[1646938994559,0.3858,2598.1,2597.7,0.07496691]
[1646938995060,0.3858,2598.1,2597.1,0.07594121]
[1646938995061,1.12150155,2598.0,2597.1,0.07594121]
[1646938995260,0.00342649,2598.0,2597.1,1.10956695]
[1646938995461,0.00342649,2598.0,2597.2,0.0720202]
[1646938995661,0.00342649,2598.0,2597.4,11.77]
[1646938995861,0.06774138,2598.1,2597.5,0.08670401]
[1646938996060,0.06774138,2598.1,2597.5,1.08670401]
[1646938996260,0.06774138,2598.1,2597.6,0.07557931]
[1646938996559,0.06774138,2598.1,2597.6,1.20414157]
[1646938996560,0.00356132,2597.7,2597.6,1.20414157]
[1646938996760,0.00356132,2597.7,2597.6,2.16664157]
[1646938996962,0.06774138,2598.1,2598.0,0.00068481]
[1646939004963,0.06774138,2598.1,2598.0,3.50068481]
[1646939005171,0.06774138,2598.1,2598.0,3.57851311]
[1646939005414,0.06774138,2598.1,2598.0,4.50068481]
[1646939005606,0.04741065,2598.1,2598.0,4.55981452]
[1646939006008,0.04741065,2598.1,2598.0,0.05981452]
[1646939006607,0.04741065,2598.1,2597.7,0.10981452]
[1646939006809,0.04741065,2598.1,2597.4,7.63614]
[1646939007009,0.04741065,2598.1,2597.5,1.20436242]
[1646939007409,0.04741065,2598.1,2597.6,0.96262]
[1646939008210,0.00377897,2597.9,2597.6,0.96262]
[1646939008410,0.00377897,2597.9,2597.4,1.92514]
[1646939008610,0.00377897,2597.9,2597.4,2.22514]
[1646939009010,0.04741065,2598.1,2597.4,2.22514]
[1646939009262,0.00377897,2597.8,2597.4,2.22514]
[1646939010262,0.04741065,2598.1,2597.4,2.22514]
[1646939010466,0.00364531,2597.8,2597.6,0.96263]
[1646939010860,0.00364531,2597.8,2597.6,1.26263]
[1646939011462,0.04741065,2598.1,2597.6,1.26263]
[1646939011662,0.00364541,2597.8,2597.6,1.26263]
[1646939011863,0.00364541,2597.8,2597.6,0.96263]
[1646939012063,0.00364541,2597.8,2597.5,1.92498]
[1646939012263,0.00364541,2597.8,2597.5,2.22498]
[1646939012663,0.04741065,2598.1,2597.5,2.22498]
[1646939012907,0.00364536,2597.8,2597.5,2.22498]
[1646939013799,0.04741065,2598.1,2597.5,2.22498]
[1646939014000,0.00366177,2597.8,2597.5,2.22498]
[1646939014202,0.0665403,2597.8,2597.7,0.06921956]
[1646939015003,0.06287853,2597.8,2597.7,0.06921956]
[1646939016948,0.00252741,2597.9,2597.8,0.97338127]